{"text_format":"1","workbook":"xlsx","n_sheets":1,"sheets":["CF_D"],"not_rendered":{"charts":0,"images":0,"macros":0,"external_links":0,"defined_names":0,"comments":0,"pivot_tables":0},"unopened":[],"bounds":{"document_bytes":16777216,"sheet_cells":100000,"rows_first":2000,"rows_last":500,"rows_between":2000,"halvings":0,"cell_chars":16384,"cell_head_chars":4096},"cells_cut":0,"cells_raw":0,"read":"whole","date_system":"1900"}

{"sheet":"CF_D","index":0,"n_rows":54,"n_cols":4,"rows_kept":54,"cut":false,"hidden":false,"merged":[[2,1,2,2]]}
[]
[null,"Konzern-Kapitalflussrechnung (IFRS)"]
[null,"vom 1. Oktober 2018 bis 30. September 2019"]
[null,null,"2018/19\n1.10.18 bis 30.9.19","2017/18\n1.10.17 bis 30.9.18"]
[null,null,"Tsd. €","Tsd. €"]
[null,"Cashflow aus der gewöhnlichen Geschäftstätigkeit:"]
[null,"Konzernergebnis",160579,{"$f":"126310-233+153","v":126230}]
[null,"Anpassung zur Überleitung des Konzernergebnisses zur Nettoveränderung \nder liquiden Mittel aus laufender Geschäftstätigkeit:"]
[null,"Ertragsteueraufwand",69279,{"$f":"53106-153","v":52953}]
[null,"Zinserträge / Zinsaufwendungen",6409,1680]
[null,"       Ergebnis aus sonstigen Beteiligungen",-34,-34]
[null,"Ergebnis aus der Veräußerung der rechtlichen Einheit/ des hydrophilen IOL-Geschäftes Aaren Scientific Inc.",0,-2527]
[null,"Abschreibungen",48370,31282]
[null,"Gewinne/Verluste aus Abgang/Abwertung von Anlagevermögen",719,2454]
[null,"Erhaltene Dividenden",34,34]
[null,"Erhaltene Zinsen",1774,{"$f":"933+13","v":946}]
[null,"Gezahlte Zinsen",-1903,{"$f":"-1952+13-1","v":-1940}]
[null,"Erstattete Ertragsteuern",6003,2583]
[null,"Gezahlte Ertragsteuern",-71073,-50947]
[null,"Veränderungen des Working Capitals:"]
[null,"Forderungen aus Lieferungen und Leistungen",-20607,{"$f":"535+51-699","v":-113}]
[null,"Vorräte",-11349,-11758]
[null,"Sonstige Vermögenswerte",6542,{"$f":"5816+699","v":6515}]
[null,"Verbindlichkeiten aus Lieferungen und Leistungen",14695,{"$f":"862-51+109+1","v":921}]
[null,"Rückstellungen und finanzielle Verbindlichkeiten",14564,{"$f":"22419-0-26","v":22393}]
[null,"Sonstige Verbindlichkeiten",-4368,6535]
[null,"Gesamte Anpassungen",59055,{"$f":"SUM(D9:D26)","v":60977}]
[null,"Netto-Kapitalzufluss/(-abfluss) aus der gewöhnlichen Geschäftstätigkeit",219634,{"$f":"+D7+D27","v":187207}]
[null,"Cashflow aus der Investitionstätigkeit:"]
[null,"Investitionen in Sachanlagen",-20348,{"$f":"-16426-109","v":-16535}]
[null,"Investitionen in sonstige immaterielle Vermögenswerte",-26363,-18221]
[null,"Erlöse aus dem Verkauf von Anlagevermögen",887,467]
[null,"Einzahlungen aus sonstigen Ausleihungen",149,0]
[null,"Auszahlungen für sonstige Ausleihungen",-177,0]
[null,"Investitionen/ Devestitionen in Wertpapiere",-4857,3220]
[null,"Erwerb von Anteilen an verbundenen nicht-konsolidierten Unternehmen",1196,0]
[null,"Erwerb von Anteilen an verbundenen konsolidierten Unternehmen abzgl. erhaltener Finanzmittel",-96333,-353]
[null,"Einzahlungen aus der Veräußerung der rechtlichen Einheit/ des hydrophilen IOL-Geschäftes Aaren Scientific Inc.",0,2548]
[null,"Netto-Kapitalzufluss/(-abfluss) aus der Investitionstätigkeit",{"$f":"SUM(C30:C38)","v":-145846},{"$f":"SUM(D30:D38)","v":-28874}]
[null,"Cashflow aus der Finanzierungsstätigkeit:"]
[null,"Aufnahme/(Rückzahlung) der kurzfristigen Kredite",-103,-102]
[null,"Aufnahme/(Rückzahlung) der langfristigen Kredite",0,-482]
[null,"(Zunahme)/Abnahme der Forderungen aus Finanzausgleich",11619,-33663]
[null,"Zunahme/(Abnahme) der Verbindlichkeiten aus Finanzausgleich",-1672,-65315]
[null,"Zunahme/(Abnahme) der Verbindlichkeiten aus Finanzierungsleasing",-13663,-2932]
[null,"Dividendenzahlung an die Aktionäre der Carl Zeiss Meditec AG",-49192,-49192]
[null,"Dividendenzahlung an nicht-beherrschende Gesellschafter",-5626,-5551]
[null,"Netto-Kapitalzufluss/(-abfluss) aus der Finanzierungsstätigkeit",{"$f":"SUM(C41:C47)","v":-58637},{"$f":"SUM(D41:D47)","v":-157237}]
[null,"Einfluss von Wechselkursänderungen auf Zahlungsmittel und Zahlungsmitteläquivalente",810,-345]
[null,"Einfluss von Konsolidierungskreisänderungen auf Zahlungsmittel und Zahlungsmitteläquivalente",0,{"$f":"1680+322","v":2002}]
[null,"Zunahme/(Abnahme) der Zahlungsmittel und Zahlungsmitteläquivalente",{"$f":"+C28+C39+C48+C49+C50","v":15961},{"$f":"+D28+D39+D48+D49+D50","v":2753}]
[null,"Zahlungsmittel und Zahlungsmitteläquivalente am Beginn des Berichtszeitraumes",6678,3925]
[null,"Zahlungsmittel und Zahlungsmitteläquivalente am Ende des Berichtszeitraumes",{"$f":"+C51+C52","v":22639},{"$f":"+D51+D52","v":6678}]
[null,"Der nachfolgende Konzernanhang ist integraler Bestandteil des geprüften Konzernabschlusses."]